[Event "Titled Tuesday Blitz May 03 Late 2022"]
[White "Wagner, Dennis"]
[Black "Richter, Nils"]
[WhiteFideId "24650684"]
[BlackFideId "12990809"]
[WhiteElo "2355"]
[BlackElo "2243"]
[Result "1-0"]
[Round "08"]
[TimeControl "180+1"]
[Date "2022.05.03"]
[WhiteClock "0:01:20"]
[BlackClock "0:00:38"]

1. d4 {[%clk 0:03:00]}  d5 {[%clk 0:02:59]} 2. Nf3 {[%clk 0:03:00]}  Nf6 {[%clk 0:02:58]} 3. c3 {[%clk 0:03:00]}  c5 {[%clk 0:02:56]} 4. dxc5 {[%clk 0:03:01]}  Nc6 {[%clk 0:02:52]} 5. b4 {[%clk 0:02:55]}  g6 {[%clk 0:02:52]} 6. e3 {[%clk 0:02:44]}  Bg7 {[%clk 0:02:51]} 7. Bb2 {[%clk 0:02:41]}  O-O {[%clk 0:02:51]} 8. Nbd2 {[%clk 0:02:39]}  e5 {[%clk 0:02:44]} 9. Be2 {[%clk 0:02:38]}  e4 {[%clk 0:02:34]} 10. Nd4 {[%clk 0:02:37]}  Ne5 {[%clk 0:02:34]} 11. h3 {[%clk 0:02:37]}  h5 {[%clk 0:02:33]} 12. c4 {[%clk 0:02:32]}  Nd3+ {[%clk 0:02:31]} 13. Bxd3 {[%clk 0:02:32]}  exd3 {[%clk 0:02:31]} 14. Qb3 {[%clk 0:02:30]}  a5 {[%clk 0:02:20]} 15. a3 {[%clk 0:02:23]}  dxc4 {[%clk 0:02:11]} 16. Nxc4 {[%clk 0:02:21]}  Qd5 {[%clk 0:02:08]} 17. Nb6 {[%clk 0:01:55]}  Qxg2 {[%clk 0:02:06]} 18. O-O-O {[%clk 0:01:56]}  Rb8 {[%clk 0:01:59]} 19. Rhg1 {[%clk 0:01:55]}  Qxh3 {[%clk 0:01:48]} 20. Rxg6 {[%clk 0:01:50]}  Kh7 {[%clk 0:01:36]} 21. Rxg7+ {[%clk 0:01:41]}  Kxg7 {[%clk 0:01:32]} 22. Rg1+ {[%clk 0:01:42]}  Kh7 {[%clk 0:01:30]} 23. Qxd3+ {[%clk 0:01:40]}  Kh6 {[%clk 0:01:24]} 24. Nxc8 {[%clk 0:01:40]}  Ng4 {[%clk 0:01:03]} 25. Nf5+ {[%clk 0:01:33]}  Kh7 {[%clk 0:00:56]} 26. Nfe7+ {[%clk 0:01:27]}  Kh6 {[%clk 0:00:50]} 27. Nd6 {[%clk 0:01:24]}  Qh2 {[%clk 0:00:41]} 28. Nxf7+ {[%clk 0:01:20]}  Rxf7 {[%clk 0:00:38]} 29. Qg6# {[%clk 0:01:20]} 1-0


[Site "https://www.chess.com"]

[Event "Titled Tuesday Blitz May 03 Late 2022"]
[White "Weber, Samuel"]
[Black "Prohorov, Olexandr"]
[WhiteFideId "12924008"]
[BlackFideId "14105578"]
[WhiteElo "2215"]
[BlackElo "1993"]
[Result "1-0"]
[Round "08"]
[TimeControl "180+1"]
[Date "2022.05.03"]
[WhiteClock "0:00:48"]
[BlackClock "0:00:03"]

1. e4 {[%clk 0:02:55]}  c5 {[%clk 0:03:00]} 2. Nf3 {[%clk 0:02:44]}  e6 {[%clk 0:03:00]} 3. d4 {[%clk 0:02:42]}  cxd4 {[%clk 0:03:01]} 4. Nxd4 {[%clk 0:02:42]}  Qb6 {[%clk 0:03:02]} 5. Nc3 {[%clk 0:02:43]}  Bc5 {[%clk 0:03:01]} 6. Be3 {[%clk 0:02:41]}  Nf6 {[%clk 0:02:58]} 7. Na4 {[%clk 0:02:30]}  Qa5+ {[%clk 0:02:49]} 8. c3 {[%clk 0:02:25]}  Bxd4 {[%clk 0:02:46]} 9. Bxd4 {[%clk 0:02:22]}  Nc6 {[%clk 0:02:43]} 10. Bxf6 {[%clk 0:02:22]}  gxf6 {[%clk 0:02:43]} 11. Be2 {[%clk 0:02:15]}  b5 {[%clk 0:02:42]} 12. Nc5 {[%clk 0:02:15]}  b4 {[%clk 0:02:42]} 13. Nb3 {[%clk 0:02:12]}  Qb6 {[%clk 0:02:42]} 14. c4 {[%clk 0:02:11]}  Rg8 {[%clk 0:02:36]} 15. c5 {[%clk 0:02:11]}  Qc7 {[%clk 0:02:33]} 16. O-O {[%clk 0:02:10]}  a5 {[%clk 0:02:32]} 17. Rc1 {[%clk 0:02:06]}  Bb7 {[%clk 0:02:23]} 18. Bb5 {[%clk 0:02:03]}  Qe5 {[%clk 0:02:13]} 19. f3 {[%clk 0:01:56]}  Qxb2 {[%clk 0:02:05]} 20. Rf2 {[%clk 0:01:54]}  Qe5 {[%clk 0:02:06]} 21. Bxc6 {[%clk 0:01:52]}  Bxc6 {[%clk 0:02:05]} 22. Nd2 {[%clk 0:01:53]}  Bb5 {[%clk 0:01:59]} 23. a4 {[%clk 0:01:53]}  bxa3 {[%clk 0:01:51]} 24. Qb3 {[%clk 0:01:53]}  Qb2 {[%clk 0:01:43]} 25. Qxb2 {[%clk 0:01:38]}  axb2 {[%clk 0:01:43]} 26. Rb1 {[%clk 0:01:38]}  a4 {[%clk 0:01:33]} 27. Rxb2 {[%clk 0:01:39]}  Bc6 {[%clk 0:01:25]} 28. Nc4 {[%clk 0:01:39]}  Rg5 {[%clk 0:01:22]} 29. Nb6 {[%clk 0:01:34]}  Ra6 {[%clk 0:01:17]} 30. Rfc2 {[%clk 0:01:30]}  a3 {[%clk 0:01:07]} 31. Ra2 {[%clk 0:01:29]}  Kd8 {[%clk 0:01:04]} 32. h4 {[%clk 0:01:28]}  Re5 {[%clk 0:00:56]} 33. Rc3 {[%clk 0:01:26]}  f5 {[%clk 0:00:51]} 34. exf5 {[%clk 0:01:25]}  Rxf5 {[%clk 0:00:51]} 35. Kf2 {[%clk 0:01:24]}  Ra5 {[%clk 0:00:47]} 36. Raxa3 {[%clk 0:01:15]}  Rxa3 {[%clk 0:00:47]} 37. Rxa3 {[%clk 0:01:16]}  Rxc5 {[%clk 0:00:47]} 38. Ke3 {[%clk 0:01:01]}  Ke7 {[%clk 0:00:43]} 39. Ra7 {[%clk 0:00:59]}  Rc2 {[%clk 0:00:42]} 40. g4 {[%clk 0:00:53]}  Rc3+ {[%clk 0:00:42]} 41. Ke2 {[%clk 0:00:48]}  Rxf3 {[%clk 0:00:39]} 42. Nxd7 {[%clk 0:00:47]}  Rg3 {[%clk 0:00:21]} 43. Ne5+ {[%clk 0:00:46]}  Kd6 {[%clk 0:00:21]} 44. Nxf7+ {[%clk 0:00:47]}  Kc5 {[%clk 0:00:20]} 45. Ne5 {[%clk 0:00:44]}  Bb5+ {[%clk 0:00:20]} 46. Kf2 {[%clk 0:00:43]}  Rh3 {[%clk 0:00:14]} 47. Rxh7 {[%clk 0:00:44]}  Kd4 {[%clk 0:00:12]} 48. Nf3+ {[%clk 0:00:43]}  Kd5 {[%clk 0:00:08]} 49. Rh5+ {[%clk 0:00:42]}  Kc4 {[%clk 0:00:06]} 50. Rxb5 {[%clk 0:00:42]}  Kxb5 {[%clk 0:00:05]} 51. Kg2 {[%clk 0:00:43]}  Rxf3 {[%clk 0:00:01]} 52. Kxf3 {[%clk 0:00:44]}  Kc4 {[%clk 0:00:01]} 53. Ke4 {[%clk 0:00:44]}  Kc5 {[%clk 0:00:01]} 54. h5 {[%clk 0:00:45]}  Kd6 {[%clk 0:00:02]} 55. h6 {[%clk 0:00:46]}  Ke7 {[%clk 0:00:02]} 56. h7 {[%clk 0:00:47]}  Kf7 {[%clk 0:00:03]} 57. h8=Q {[%clk 0:00:48]} 1-0


[Site "https://www.chess.com"]

[Event "Titled Tuesday Blitz May 03 Late 2022"]
[White "Xiong, Jeffery"]
[Black "Kazakouski, Valery"]
[WhiteFideId "2047640"]
[BlackFideId "13507443"]
[WhiteElo "2727"]
[BlackElo "2524"]
[Result "1-0"]
[Round "08"]
[TimeControl "180+1"]
[Date "2022.05.03"]
[WhiteClock "0:01:17"]
[BlackClock "0:00:01"]

1. Nf3 {[%clk 0:03:00]}  Nf6 {[%clk 0:02:59]} 2. c4 {[%clk 0:02:59]}  e6 {[%clk 0:02:59]} 3. b3 {[%clk 0:02:58]}  d5 {[%clk 0:02:58]} 4. Bb2 {[%clk 0:02:59]}  b6 {[%clk 0:02:58]} 5. g3 {[%clk 0:02:59]}  Bb7 {[%clk 0:02:58]} 6. Bg2 {[%clk 0:03:00]}  c5 {[%clk 0:02:58]} 7. cxd5 {[%clk 0:02:57]}  Nxd5 {[%clk 0:02:57]} 8. O-O {[%clk 0:02:57]}  Nf6 {[%clk 0:02:50]} 9. d4 {[%clk 0:02:49]}  Nbd7 {[%clk 0:02:48]} 10. Nc3 {[%clk 0:02:48]}  Be7 {[%clk 0:02:46]} 11. Re1 {[%clk 0:02:45]}  Rc8 {[%clk 0:02:35]} 12. e4 {[%clk 0:02:45]}  cxd4 {[%clk 0:02:25]} 13. Nxd4 {[%clk 0:02:46]}  Ne5 {[%clk 0:01:53]} 14. Qd2 {[%clk 0:02:08]}  O-O {[%clk 0:01:48]} 15. Rad1 {[%clk 0:02:09]}  Qc7 {[%clk 0:01:40]} 16. f4 {[%clk 0:02:03]}  Ng6 {[%clk 0:01:15]} 17. e5 {[%clk 0:01:59]}  Ng4 {[%clk 0:01:05]} 18. Ncb5 {[%clk 0:01:48]}  Qb8 {[%clk 0:01:05]} 19. h3 {[%clk 0:01:37]}  Nh6 {[%clk 0:01:05]} 20. Bxb7 {[%clk 0:01:38]}  Qxb7 {[%clk 0:01:05]} 21. Qg2 {[%clk 0:01:38]}  Qxg2+ {[%clk 0:00:34]} 22. Kxg2 {[%clk 0:01:39]}  a6 {[%clk 0:00:34]} 23. Nd6 {[%clk 0:01:24]}  Bxd6 {[%clk 0:00:30]} 24. exd6 {[%clk 0:01:25]}  Rfd8 {[%clk 0:00:31]} 25. Rc1 {[%clk 0:01:26]}  Nf8 {[%clk 0:00:20]} 26. Nc6 {[%clk 0:01:24]}  Nf5 {[%clk 0:00:14]} 27. Ne7+ {[%clk 0:01:16]}  Nxe7 {[%clk 0:00:01]} 28. dxe7 {[%clk 0:01:17]}  Rd2+ {[%clk 0:00:01]} 29. Kf3 {[%clk 0:01:17]} 1-0


[Site "https://www.chess.com"]

[Event "Titled Tuesday Blitz May 03 Late 2022"]
[White "Yaran, Siar"]
[Black "Reprintsev, Alexander"]
[WhiteFideId "6323006"]
[BlackFideId "14100541"]
[WhiteElo "1977"]
[BlackElo "2108"]
[Result "0-1"]
[Round "08"]
[TimeControl "180+1"]
[Date "2022.05.03"]
[WhiteClock "0:00:01"]
[BlackClock "0:00:48"]

1. d4 {[%clk 0:03:00]}  d5 {[%clk 0:02:51]} 2. c4 {[%clk 0:03:01]}  e5 {[%clk 0:02:50]} 3. cxd5 {[%clk 0:02:44]}  Qxd5 {[%clk 0:02:47]} 4. Nf3 {[%clk 0:02:43]}  Nc6 {[%clk 0:02:46]} 5. Nc3 {[%clk 0:02:32]}  Bb4 {[%clk 0:02:46]} 6. e3 {[%clk 0:01:57]}  exd4 {[%clk 0:02:46]} 7. exd4 {[%clk 0:01:53]}  Bg4 {[%clk 0:02:46]} 8. Be2 {[%clk 0:01:54]}  Bxf3 {[%clk 0:02:46]} 9. Bxf3 {[%clk 0:01:53]}  Qc4 {[%clk 0:02:46]} 10. Bxc6+ {[%clk 0:01:29]}  bxc6 {[%clk 0:02:47]} 11. Qe2+ {[%clk 0:01:28]}  Qxe2+ {[%clk 0:02:47]} 12. Kxe2 {[%clk 0:01:28]}  Kd7 {[%clk 0:02:47]} 13. Be3 {[%clk 0:01:28]}  Ne7 {[%clk 0:02:46]} 14. Rhc1 {[%clk 0:01:28]}  Rhe8 {[%clk 0:02:44]} 15. Kd3 {[%clk 0:01:25]}  Rab8 {[%clk 0:02:38]} 16. Na4 {[%clk 0:01:24]}  Nd5 {[%clk 0:02:35]} 17. Rc4 {[%clk 0:01:09]}  Re6 {[%clk 0:02:26]} 18. a3 {[%clk 0:00:46]}  Bd6 {[%clk 0:02:20]} 19. b4 {[%clk 0:00:29]}  h6 {[%clk 0:02:16]} 20. g3 {[%clk 0:00:26]}  f5 {[%clk 0:02:15]} 21. Rac1 {[%clk 0:00:20]}  Be7 {[%clk 0:02:11]} 22. Nc5+ {[%clk 0:00:19]}  Bxc5 {[%clk 0:02:11]} 23. Rxc5 {[%clk 0:00:19]}  g5 {[%clk 0:02:10]} 24. Bd2 {[%clk 0:00:19]}  a6 {[%clk 0:02:05]} 25. Rh1 {[%clk 0:00:18]}  Rbe8 {[%clk 0:01:42]} 26. h4 {[%clk 0:00:18]}  g4 {[%clk 0:01:41]} 27. Rcc1 {[%clk 0:00:13]}  f4 {[%clk 0:01:31]} 28. gxf4 {[%clk 0:00:12]}  Re4 {[%clk 0:01:31]} 29. Rce1 {[%clk 0:00:03]}  Nxf4+ {[%clk 0:01:31]} 30. Kc4 {[%clk 0:00:02]}  Rxe1 {[%clk 0:01:29]} 31. Rxe1 {[%clk 0:00:03]}  Rxe1 {[%clk 0:01:28]} 32. Bxe1 {[%clk 0:00:04]}  Nh3 {[%clk 0:00:52]} 33. Kd3 {[%clk 0:00:02]}  h5 {[%clk 0:00:48]} 34. Ke4 {[%clk 0:00:01]}  Ng1 {[%clk 0:00:48]} 35. Bd2 {[%clk 0:00:01]}  Nf3 {[%clk 0:00:48]} 0-1


[Site "https://www.chess.com"]

[Event "Titled Tuesday Blitz May 03 Late 2022"]
[White "Zhang, Derek"]
[Black "Hambleton, Aman"]
[WhiteFideId "2087871"]
[BlackFideId "2606577"]
[WhiteElo "2085"]
[BlackElo "2552"]
[Result "0-1"]
[Round "08"]
[TimeControl "180+1"]
[Date "2022.05.03"]
[WhiteClock "0:00:07"]
[BlackClock "0:00:04"]

1. Nf3 {[%clk 0:03:00]}  b6 {[%clk 0:02:56]} 2. c4 {[%clk 0:03:01]}  Bb7 {[%clk 0:02:56]} 3. e3 {[%clk 0:03:02]}  c5 {[%clk 0:02:56]} 4. Be2 {[%clk 0:03:02]}  Nf6 {[%clk 0:02:55]} 5. O-O {[%clk 0:03:03]}  e6 {[%clk 0:02:56]} 6. Nc3 {[%clk 0:03:03]}  d6 {[%clk 0:02:55]} 7. b3 {[%clk 0:03:03]}  Be7 {[%clk 0:02:55]} 8. Bb2 {[%clk 0:03:03]}  O-O {[%clk 0:02:55]} 9. d4 {[%clk 0:03:04]}  a6 {[%clk 0:02:56]} 10. Rc1 {[%clk 0:03:03]}  Nbd7 {[%clk 0:02:56]} 11. Qd2 {[%clk 0:03:03]}  Re8 {[%clk 0:02:55]} 12. Rfd1 {[%clk 0:03:02]}  cxd4 {[%clk 0:02:51]} 13. exd4 {[%clk 0:02:57]}  Bf8 {[%clk 0:02:49]} 14. h3 {[%clk 0:02:51]}  Rc8 {[%clk 0:02:45]} 15. Qe3 {[%clk 0:02:46]}  Qc7 {[%clk 0:02:43]} 16. Ng5 {[%clk 0:02:36]}  Qb8 {[%clk 0:02:25]} 17. Bf3 {[%clk 0:02:35]}  b5 {[%clk 0:02:14]} 18. Be2 {[%clk 0:01:47]}  bxc4 {[%clk 0:02:00]} 19. Bxc4 {[%clk 0:01:41]}  h6 {[%clk 0:01:47]} 20. Nf3 {[%clk 0:01:38]}  Bxf3 {[%clk 0:01:43]} 21. Qxf3 {[%clk 0:01:05]}  Rxc4 {[%clk 0:01:42]} 22. bxc4 {[%clk 0:00:49]}  Qxb2 {[%clk 0:01:43]} 23. Rb1 {[%clk 0:00:42]}  Qa3 {[%clk 0:01:31]} 24. Rb3 {[%clk 0:00:42]}  Qa5 {[%clk 0:01:31]} 25. Qc6 {[%clk 0:00:42]}  Rd8 {[%clk 0:00:44]} 26. Rdb1 {[%clk 0:00:26]}  e5 {[%clk 0:00:43]} 27. Ne2 {[%clk 0:00:20]}  exd4 {[%clk 0:00:25]} 28. Nxd4 {[%clk 0:00:21]}  Ne5 {[%clk 0:00:25]} 29. Qb7 {[%clk 0:00:19]}  Qxa2 {[%clk 0:00:20]} 30. Qb6 {[%clk 0:00:18]}  Rc8 {[%clk 0:00:11]} 31. R1b2 {[%clk 0:00:09]}  Qa1+ {[%clk 0:00:11]} 32. Rb1 {[%clk 0:00:09]}  Qa2 {[%clk 0:00:10]} 33. R1b2 {[%clk 0:00:09]}  Qa4 {[%clk 0:00:11]} 34. Rb4 {[%clk 0:00:10]}  Qd1+ {[%clk 0:00:11]} 35. Kh2 {[%clk 0:00:09]}  Nxc4 {[%clk 0:00:12]} 36. Qb7 {[%clk 0:00:07]}  Rc5 {[%clk 0:00:04]} 37. Nb3 {[%clk 0:00:04]}  Nxb2 {[%clk 0:00:04]} 38. Nxc5 {[%clk 0:00:04]}  dxc5 {[%clk 0:00:04]} 39. Rxb2 {[%clk 0:00:05]}  Qd6+ {[%clk 0:00:03]} 40. g3 {[%clk 0:00:04]}  Qd4 {[%clk 0:00:03]} 41. Ra2 {[%clk 0:00:03]}  Qd5 {[%clk 0:00:02]} 42. Qxd5 {[%clk 0:00:03]}  Nxd5 {[%clk 0:00:03]} 43. Rxa6 {[%clk 0:00:03]}  g6 {[%clk 0:00:03]} 44. Rc6 {[%clk 0:00:03]}  Kg7 {[%clk 0:00:03]} 45. Kg2 {[%clk 0:00:04]}  Nb4 {[%clk 0:00:03]} 46. Rc7 {[%clk 0:00:03]}  Nd5 {[%clk 0:00:03]} 47. Rc6 {[%clk 0:00:03]}  Nf6 {[%clk 0:00:03]} 48. f3 {[%clk 0:00:02]}  Nd7 {[%clk 0:00:03]} 49. Rc7 {[%clk 0:00:01]}  Ne5 {[%clk 0:00:02]} 50. Rc8 {[%clk 0:00:01]}  Nd3 {[%clk 0:00:02]} 51. f4 {[%clk 0:00:02]}  Nb4 {[%clk 0:00:02]} 52. Kf3 {[%clk 0:00:02]}  Nd5 {[%clk 0:00:02]} 53. Ke4 {[%clk 0:00:02]}  Nf6+ {[%clk 0:00:02]} 54. Kf3 {[%clk 0:00:03]}  h5 {[%clk 0:00:03]} 55. g4 {[%clk 0:00:03]}  hxg4+ {[%clk 0:00:03]} 56. hxg4 {[%clk 0:00:04]}  Ng8 {[%clk 0:00:03]} 57. f5 {[%clk 0:00:04]}  gxf5 {[%clk 0:00:01]} 58. gxf5 {[%clk 0:00:05]}  Nf6 {[%clk 0:00:02]} 59. Kf4 {[%clk 0:00:05]}  Bd6+ {[%clk 0:00:02]} 60. Kf3 {[%clk 0:00:05]}  Nd7 {[%clk 0:00:01]} 61. Rc6 {[%clk 0:00:05]}  Ne5+ {[%clk 0:00:02]} 62. Ke4 {[%clk 0:00:06]}  Nxc6 {[%clk 0:00:03]} 63. Kd5 {[%clk 0:00:07]}  Kf6 {[%clk 0:00:03]} 64. Kxc6 {[%clk 0:00:06]}  c4 {[%clk 0:00:03]} 65. Kxd6 {[%clk 0:00:07]}  c3 {[%clk 0:00:04]} 0-1


[Site "https://www.chess.com"]

[Event "Titled Tuesday Blitz May 03 Late 2022"]
[White "Zhigalko, Sergei"]
[Black "Shimanov, Aleksandr"]
[WhiteFideId "13502956"]
[BlackFideId "4198603"]
[WhiteElo "2662"]
[BlackElo "2636"]
[Result "0-1"]
[Round "08"]
[TimeControl "180+1"]
[Date "2022.05.03"]
[WhiteClock "0:00:01"]
[BlackClock "0:00:09"]

1. e4 {[%clk 0:03:00]}  d5 {[%clk 0:02:58]} 2. exd5 {[%clk 0:03:00]}  Qxd5 {[%clk 0:02:59]} 3. Nf3 {[%clk 0:03:00]}  Bg4 {[%clk 0:02:58]} 4. Be2 {[%clk 0:03:00]}  Nc6 {[%clk 0:02:57]} 5. h3 {[%clk 0:02:59]}  Bxf3 {[%clk 0:02:56]} 6. Bxf3 {[%clk 0:03:00]}  Qe6+ {[%clk 0:02:56]} 7. Be2 {[%clk 0:02:57]}  Nd4 {[%clk 0:02:56]} 8. Nc3 {[%clk 0:02:57]}  O-O-O {[%clk 0:02:53]} 9. O-O {[%clk 0:02:55]}  Nxe2+ {[%clk 0:02:53]} 10. Nxe2 {[%clk 0:02:56]}  Nf6 {[%clk 0:02:42]} 11. d4 {[%clk 0:02:52]}  Rg8 {[%clk 0:02:37]} 12. c3 {[%clk 0:02:38]}  g5 {[%clk 0:02:31]} 13. Ng3 {[%clk 0:02:36]}  Qd7 {[%clk 0:02:20]} 14. Re1 {[%clk 0:02:21]}  e6 {[%clk 0:02:20]} 15. Qf3 {[%clk 0:02:18]}  Be7 {[%clk 0:02:13]} 16. Re5 {[%clk 0:02:03]}  g4 {[%clk 0:02:00]} 17. hxg4 {[%clk 0:02:02]}  Nxg4 {[%clk 0:02:00]} 18. Ra5 {[%clk 0:02:00]}  Kb8 {[%clk 0:02:00]} 19. Bf4 {[%clk 0:01:57]}  Bd6 {[%clk 0:01:49]} 20. Re1 {[%clk 0:01:49]}  f5 {[%clk 0:01:36]} 21. Bxd6 {[%clk 0:01:27]}  Qxd6 {[%clk 0:01:34]} 22. d5 {[%clk 0:00:35]}  exd5 {[%clk 0:01:31]} 23. Qxf5 {[%clk 0:00:31]}  Qb6 {[%clk 0:01:22]} 24. Rxd5 {[%clk 0:00:07]}  Rxd5 {[%clk 0:00:43]} 25. Qxg4 {[%clk 0:00:07]}  Rdd8 {[%clk 0:00:43]} 26. Qe6 {[%clk 0:00:03]}  Qxb2 {[%clk 0:00:33]} 27. Nf5 {[%clk 0:00:02]}  Rgf8 {[%clk 0:00:30]} 28. g3 {[%clk 0:00:02]}  Qxc3 {[%clk 0:00:29]} 29. Re5 {[%clk 0:00:02]}  a6 {[%clk 0:00:23]} 30. Kg2 {[%clk 0:00:02]}  Qd3 {[%clk 0:00:20]} 31. Ne3 {[%clk 0:00:02]}  Qd7 {[%clk 0:00:21]} 32. Qh6 {[%clk 0:00:02]}  Qf7 {[%clk 0:00:21]} 33. f4 {[%clk 0:00:01]}  Qxa2+ {[%clk 0:00:21]} 34. Kf3 {[%clk 0:00:02]}  Qf7 {[%clk 0:00:20]} 35. Qh5 {[%clk 0:00:02]}  Qxh5+ {[%clk 0:00:19]} 36. Rxh5 {[%clk 0:00:02]}  Rd7 {[%clk 0:00:19]} 37. Ng4 {[%clk 0:00:03]}  Rc8 {[%clk 0:00:15]} 38. Ne5 {[%clk 0:00:03]}  Re7 {[%clk 0:00:15]} 39. Ke4 {[%clk 0:00:03]}  c5 {[%clk 0:00:15]} 40. f5 {[%clk 0:00:04]}  c4 {[%clk 0:00:15]} 41. f6 {[%clk 0:00:04]}  Rec7 {[%clk 0:00:15]} 42. f7 {[%clk 0:00:02]}  c3 {[%clk 0:00:15]} 43. Rf5 {[%clk 0:00:01]}  c2 {[%clk 0:00:14]} 44. f8=Q {[%clk 0:00:01]}  c1=Q {[%clk 0:00:14]} 45. Qd6 {[%clk 0:00:01]}  Ka8 {[%clk 0:00:11]} 46. Nd3 {[%clk 0:00:01]}  Qc4+ {[%clk 0:00:10]} 47. Ke3 {[%clk 0:00:01]}  Re8+ {[%clk 0:00:10]} 48. Kf2 {[%clk 0:00:01]}  Qc2+ {[%clk 0:00:09]} 0-1


[Site "https://www.chess.com"]

[Event "Titled Tuesday Blitz May 03 Late 2022"]
[White "Ansh M Shah"]
[Black "Jegorovas, Aleksandras"]
[WhiteFideId "25033379"]
[BlackFideId "12801950"]
[WhiteElo "1819"]
[BlackElo "2247"]
[Result "1-0"]
[Round "09"]
[TimeControl "180+1"]
[Date "2022.05.03"]
[WhiteClock "0:00:34"]
[BlackClock "0:00:16"]

1. d4 {[%clk 0:03:00]}  e6 {[%clk 0:02:55]} 2. c4 {[%clk 0:03:01]}  Nf6 {[%clk 0:02:54]} 3. Nf3 {[%clk 0:03:01]}  Nc6 {[%clk 0:02:54]} 4. g3 {[%clk 0:03:02]}  d5 {[%clk 0:02:53]} 5. cxd5 {[%clk 0:02:59]}  exd5 {[%clk 0:02:52]} 6. Bg2 {[%clk 0:03:00]}  Bg4 {[%clk 0:02:50]} 7. O-O {[%clk 0:03:01]}  Bd6 {[%clk 0:02:46]} 8. Nc3 {[%clk 0:03:01]}  a6 {[%clk 0:02:43]} 9. Qb3 {[%clk 0:03:01]}  Bxf3 {[%clk 0:02:34]} 10. exf3 {[%clk 0:02:45]}  O-O {[%clk 0:02:29]} 11. Be3 {[%clk 0:02:39]}  Na5 {[%clk 0:02:26]} 12. Qa4 {[%clk 0:02:35]}  c6 {[%clk 0:02:18]} 13. Qc2 {[%clk 0:02:31]}  Nc4 {[%clk 0:02:15]} 14. b3 {[%clk 0:02:31]}  Nxe3 {[%clk 0:02:12]} 15. fxe3 {[%clk 0:02:32]}  Bb4 {[%clk 0:02:06]} 16. Na4 {[%clk 0:02:30]}  Re8 {[%clk 0:02:02]} 17. Qd3 {[%clk 0:02:30]}  Qd6 {[%clk 0:01:53]} 18. Rac1 {[%clk 0:02:21]}  Rad8 {[%clk 0:01:48]} 19. Nc5 {[%clk 0:02:22]}  Bxc5 {[%clk 0:01:46]} 20. Rxc5 {[%clk 0:02:22]}  Re7 {[%clk 0:01:36]} 21. Rc3 {[%clk 0:02:11]}  Rde8 {[%clk 0:01:33]} 22. Qd2 {[%clk 0:02:11]}  Qb4 {[%clk 0:01:26]} 23. Qc1 {[%clk 0:02:08]}  h5 {[%clk 0:01:10]} 24. h4 {[%clk 0:02:07]}  Qd6 {[%clk 0:00:54]} 25. Kf2 {[%clk 0:02:07]}  Nd7 {[%clk 0:00:44]} 26. Bh3 {[%clk 0:02:06]}  Nf8 {[%clk 0:00:44]} 27. Rd3 {[%clk 0:01:57]}  a5 {[%clk 0:00:30]} 28. Qc5 {[%clk 0:01:45]}  Qxc5 {[%clk 0:00:30]} 29. dxc5 {[%clk 0:01:45]}  Ne6 {[%clk 0:00:30]} 30. Bxe6 {[%clk 0:01:45]}  Rxe6 {[%clk 0:00:30]} 31. a3 {[%clk 0:01:42]}  Ra8 {[%clk 0:00:29]} 32. Rc1 {[%clk 0:01:42]}  a4 {[%clk 0:00:29]} 33. b4 {[%clk 0:01:42]}  Rc8 {[%clk 0:00:26]} 34. Rd4 {[%clk 0:01:39]}  g6 {[%clk 0:00:26]} 35. Rc3 {[%clk 0:01:33]}  Kg7 {[%clk 0:00:26]} 36. Rc2 {[%clk 0:01:27]}  f5 {[%clk 0:00:25]} 37. Rb2 {[%clk 0:01:26]}  Kf6 {[%clk 0:00:25]} 38. b5 {[%clk 0:01:23]}  Rc7 {[%clk 0:00:20]} 39. Rxa4 {[%clk 0:01:17]}  cxb5 {[%clk 0:00:18]} 40. Rxb5 {[%clk 0:01:18]}  Rec6 {[%clk 0:00:18]} 41. Rab4 {[%clk 0:01:07]}  Rxc5 {[%clk 0:00:18]} 42. Rxc5 {[%clk 0:01:07]}  Rxc5 {[%clk 0:00:18]} 43. Rb6+ {[%clk 0:01:04]}  Kf7 {[%clk 0:00:15]} 44. Rxb7+ {[%clk 0:01:04]}  Kf6 {[%clk 0:00:15]} 45. Rb6+ {[%clk 0:01:05]}  Kf7 {[%clk 0:00:15]} 46. Ke2 {[%clk 0:00:46]}  Rc2+ {[%clk 0:00:15]} 47. Kd3 {[%clk 0:00:46]}  Ra2 {[%clk 0:00:15]} 48. Ra6 {[%clk 0:00:44]}  Rg2 {[%clk 0:00:16]} 49. a4 {[%clk 0:00:41]}  Rxg3 {[%clk 0:00:16]} 50. f4 {[%clk 0:00:41]}  Rg4 {[%clk 0:00:15]} 51. Kd4 {[%clk 0:00:40]}  Rxh4 {[%clk 0:00:15]} 52. Kxd5 {[%clk 0:00:41]}  Rh1 {[%clk 0:00:15]} 53. Ke5 {[%clk 0:00:40]}  Re1 {[%clk 0:00:15]} 54. Ra7+ {[%clk 0:00:41]}  Kg8 {[%clk 0:00:15]} 55. Kf6 {[%clk 0:00:42]}  Rxe3 {[%clk 0:00:15]} 56. Kxg6 {[%clk 0:00:42]}  Kf8 {[%clk 0:00:15]} 57. Kxh5 {[%clk 0:00:41]}  Re4 {[%clk 0:00:15]} 58. Kg5 {[%clk 0:00:40]}  Rb4 {[%clk 0:00:15]} 59. Kxf5 {[%clk 0:00:40]}  Kg8 {[%clk 0:00:15]} 60. Kg6 {[%clk 0:00:39]}  Rxf4 {[%clk 0:00:14]} 61. Ra8+ {[%clk 0:00:32]}  Rf8 {[%clk 0:00:15]} 62. Rxf8+ {[%clk 0:00:33]}  Kxf8 {[%clk 0:00:16]} 63. a5 {[%clk 0:00:34]} 1-0


[Site "https://www.chess.com"]